fUSD/lending_fUSD_20260519
["ID","MTS","AMOUNT","RATE_DAILY","PERIOD"]
[422613013,1779153040000,-163.01848364,0.00014396,2]
[422613047,1779153040000,-161.66,0.00014528,2]
[422613018,1779153040000,-163.01848364,0.00014411,2]
[422613019,1779153040000,-150.0,0.00014418,2]
[422613020,1779153040000,-150.0,0.00014424,2]
[422613024,1779153040000,-150.0,0.00014451,2]
[422613035,1779153040000,-523.48,0.00014504,2]
[422613034,1779153040000,-500.0,0.00014504,2]
[422613025,1779153040000,-163.01848364,0.00014456,2]
[422613023,1779153040000,-163.01848364,0.00014441,2]
[422613026,1779153040000,-150.0,0.00014465,2]
[422613028,1779153040000,-163.01848364,0.00014472,2]
[422613033,1779153040000,-163.01848364,0.00014502,2]
[422613027,1779153040000,-150.0,0.0001447,2]
[422613031,1779153040000,-163.01848364,0.00014487,2]
[422613029,1779153040000,-150.0,0.00014487,2]
[422613016,1779153040000,-3671.7282,0.00014404,2]
[422613065,1779153040000,-163.01848364,0.00014623,2]
[422613095,1779153040000,-150.0,0.00014805,2]
[422613072,1779153040000,-150.0,0.00014661,2]
[422613107,1779153040000,-150.0,0.00014883,2]
[422613110,1779153040000,-163.01848364,0.00014895,2]
[422613108,1779153040000,-150.0,0.00014893,2]
[422613109,1779153040000,-150.0,0.00014895,2]
[422613071,1779153040000,-163.01848364,0.00014653,2]
[422613111,1779153040000,-179.56842482,0.000149,2]
[422613114,1779153040000,-5237.01477432,0.000149,2]
[422613112,1779153040000,-3463.37509711,0.000149,3]
[422613116,1779153040000,-402.8421886,0.000149,2]
[422613120,1779153040000,-163.01848364,0.00014911,2]
[422613124,1779153040000,-150.0,0.00014935,2]
[422613118,1779153040000,-5000.0,0.000149,2]
[422613127,1779153040000,-163.01848364,0.00014956,2]
[422613119,1779153040000,-290.88615179,0.00014908,2]
[422613123,1779153040000,-150.0,0.00014933,2]
[422613126,1779153040000,-163.01848364,0.00014941,2]
[422613117,1779153040000,-181.84872837,0.000149,2]
[422613128,1779153040000,-163.01848364,0.00014971,2]
[422613125,1779153040000,-150.0,0.00014941,2]
[422613122,1779153040000,-163.01848364,0.00014926,2]
[422613121,1779153040000,-150.0,0.00014921,2]
[422613129,1779153040000,-278.83771141,0.00014986,2]
[422613131,1779153040000,-150.0,0.00014986,2]
[422613130,1779153040000,-250.88125164,0.00014986,2]
[422613133,1779153040000,-150.00000002,0.00014986,2]
[422613134,1779153040000,-164.93102534,0.00014986,2]
[422613132,1779153040000,-151.05845013,0.00014986,2]
[422613105,1779153040000,-150.0,0.00014879,2]
[422613106,1779153040000,-163.01848364,0.0001488,2]
[422613113,1779153040000,-411.66029134,0.000149,2]
[422613104,1779153040000,-163.01848364,0.00014865,2]
[422613069,1779153040000,-163.01848364,0.00014638,2]
[422613067,1779153040000,-150.0,0.00014625,2]
[422613077,1779153040000,-163.01848364,0.00014684,2]
[422613079,1779153040000,-150.0,0.00014705,2]
[422613078,1779153040000,-163.01848364,0.00014699,2]
[422613080,1779153040000,-150.0,0.00014714,2]
[422613082,1779153040000,-150.0,0.00014719,2]
[422613115,1779153040000,-1040.42994586,0.000149,2]
[422613084,1779153040000,-150.0,0.00014728,2]
[422613089,1779153040000,-150.0,0.00014772,2]
[422613083,1779153040000,-150.0,0.00014726,2]
[422613087,1779153040000,-150.0,0.00014759,2]
[422613088,1779153040000,-163.01848364,0.00014759,2]
[422613086,1779153040000,-163.01848364,0.00014744,2]
[422613090,1779153040000,-163.01848364,0.00014774,2]
[422613085,1779153040000,-163.01848364,0.00014729,2]
[422613081,1779153040000,-163.01848364,0.00014714,2]
[422613098,1779153040000,-150.0,0.00014826,2]
[422613101,1779153040000,-150.0,0.0001485,2]
[422613100,1779153040000,-163.01848364,0.00014835,2]
[422613097,1779153040000,-163.01848364,0.0001482,2]
[422613103,1779153040000,-150.0,0.00014856,2]
[422613099,1779153040000,-150.0,0.00014831,2]
[422613093,1779153040000,-150.0,0.00014791,2]
[422613094,1779153040000,-150.0,0.00014799,2]
[422613102,1779153040000,-163.01848364,0.0001485,2]
[422613091,1779153040000,-150.0,0.0001478,2]
[422613092,1779153040000,-163.01848364,0.0001479,2]
[422613096,1779153040000,-163.01848364,0.00014805,2]
[422613150,1779153041000,-747.90915539,0.00015,2]
[422613140,1779153041000,-229.74710183,0.00014999,2]
[422613143,1779153041000,-160.82297128,0.00014999,2]
[422613148,1779153041000,-5319.946548,0.00015,2]
[422613151,1779153041000,-2495.87773394,0.00015,2]
[422613142,1779153041000,-391.01352408,0.00014999,2]
[422613141,1779153041000,-500.0,0.00014999,2]
[422613139,1779153041000,-500.0,0.00014999,2]
[422613137,1779153041000,-365.35749971,0.0001499,2]
[422613136,1779153041000,-365.35749971,0.0001499,2]
[422613138,1779153041000,-365.35749971,0.0001499,2]
[422613135,1779153041000,-163.01848364,0.00014986,2]
[422613145,1779153041000,-300.0,0.00014999,2]
[422613146,1779153041000,-300.0,0.00014999,2]
[422613147,1779153041000,-9985091.16161007,0.00015,2]
[422613149,1779153041000,-807.91327417,0.00015,2]
[422613144,1779153041000,-300.0,0.00014999,2]
[422613165,1779153041000,-37780.53205576,0.00015,2]
[422613162,1779153041000,-18850.04164589,0.00015,2]
[422613164,1779153041000,-83231.823612,0.00015,2]
[422613163,1779153041000,-2316.90688967,0.00015,2]
[422613160,1779153041000,-1012.59242027,0.00015,2]
[422613161,1779153041000,-173727.65747783,0.00015,2]
[422613159,1779153041000,-475.80353924,0.00015,2]
[422613157,1779153041000,-1135.96567531,0.00015,2]
[422613155,1779153041000,-19285.47223322,0.00015,2]
[422613156,1779153041000,-390.204,0.00015,2]
[422613154,1779153041000,-504.28224,0.00015,2]
[422613153,1779153041000,-113107.29642432,0.00015,2]
[422613158,1779153041000,-1819.1209591,0.00015,2]
[422613152,1779153041000,-775.32092544,0.00015,2]
[422613176,1779153043000,-8572.35381641,0.00015,2]
[422613174,1779153043000,-500.0,0.00015,2]
[422613181,1779153043000,-1400.90927711,0.00015,2]
[422613180,1779153043000,-341.04,0.00015,2]
[422613179,1779153043000,-4067.36611766,0.00015,2]
[422613185,1779153044000,-895.32425439,0.00015,2]
[422613183,1779153044000,-0.8175734,0.00015,2]
[422613184,1779153044000,-1594.3737335,0.00015,2]
[422613182,1779153044000,-7029.85982336,0.00015,2]
[422613192,1779153046000,-73215.22567428,0.00015,2]
[422613191,1779153046000,-22628.77695369,0.00015,2]
[422613194,1779153047000,-5826.5250725,0.00015,2]
[422613193,1779153047000,-65166.45,0.00015,2]
[422613195,1779153047000,-1110.9295,0.00015,2]
[422613198,1779153047000,-39900.95365898,0.00015,2]
[422613196,1779153047000,-1151.30067516,0.00015,2]
[422613199,1779153047000,-494.61771879,0.00015,2]
[422613197,1779153047000,-3522.8078,0.00015,2]
[422613204,1779153095000,657.736587,0.00023267,120]
[422613207,1779153415000,161.66,6.937e-05,2]
[422613223,1779154006000,-544.9195082,0.000133,2]
[422613242,1779154231000,-204.94739984,0.000132,2]
[422613237,1779154231000,-451.87,0.0001285,2]
[422613240,1779154231000,-250.0,0.00013063,2]
[422613239,1779154231000,-431.73,0.00012927,2]
[422613241,1779154231000,-250.0,0.00013195,2]
[422613246,1779154231000,-200.0,0.000133,5]
[422613238,1779154231000,-157.17,0.00012879,2]
[422613247,1779154231000,-1200.0,0.00013388,2]
[422613243,1779154231000,-431.73,0.0001325,2]
[422613245,1779154231000,-208.08566668,0.000133,2]
[422613244,1779154231000,-1455.0804918,0.000133,2]
[422613256,1779154231000,-150.0,0.00013488,2]
[422613257,1779154231000,-150.0,0.00013488,2]
[422613258,1779154231000,-150.0,0.00013488,2]
[422613259,1779154231000,-150.0,0.00013506,2]
[422613252,1779154231000,-150.0,0.00013488,2]
[422613249,1779154231000,-268.4296,0.00013389,2]
[422613254,1779154231000,-150.0,0.00013488,2]
[422613250,1779154231000,-19999.99,0.00013389,2]
[422613248,1779154231000,-300.0,0.00013388,2]
[422613255,1779154231000,-150.0,0.00013488,2]
[422613253,1779154231000,-150.49474749,0.00013488,2]
[422613251,1779154231000,-151.10219896,0.00013488,2]
[422613316,1779154232000,-150.0,0.0001376,2]
[422613301,1779154232000,-150.0,0.00013702,2]
[422613323,1779154232000,-150.0,0.00013803,2]
[422613314,1779154232000,-150.99,0.00013748,2]
[422613317,1779154232000,-150.0,0.00013764,2]
[422613318,1779154232000,-150.0,0.0001378,2]
[422613298,1779154232000,-200.0,0.00013699,2]
[422613315,1779154232000,-5287.74,0.00013749,2]
[422613325,1779154232000,-150.0,0.00013838,2]
[422613313,1779154232000,-150.0,0.00013741,2]
[422613303,1779154232000,-500.0,0.00013704,2]
[422613319,1779154232000,-150.0,0.00013787,2]
[422613326,1779154232000,-150.0,0.00013843,2]
[422613324,1779154232000,-150.0,0.00013819,2]
[422613331,1779154232000,-160.0,0.00013883,2]
[422613321,1779154232000,-150.0,0.00013799,2]
[422613322,1779154232000,-150.0,0.00013803,2]
[422613329,1779154232000,-150.0,0.00013882,2]
[422613328,1779154232000,-150.0,0.00013877,2]
[422613330,1779154232000,-150.0,0.00013882,2]
[422613334,1779154232000,-150.0,0.00013887,2]
[422613327,1779154232000,-150.0,0.00013857,2]
[422613336,1779154232000,-150.0,0.00013896,2]
[422613333,1779154232000,-243.466459,0.00013883,2]
[422613338,1779154232000,-150.0,0.00013921,2]
[422613337,1779154232000,-150.0,0.00013916,2]
[422613332,1779154232000,-1362.222936,0.00013883,2]
[422613320,1779154232000,-150.0,0.00013787,2]
[422613296,1779154232000,-166.66,0.00013699,2]
[422613268,1779154232000,-150.0,0.00013546,2]
[422613309,1779154232000,-150.0,0.00013724,2]
[422613262,1779154232000,-319.37,0.00013514,2]
[422613260,1779154232000,-150.0,0.00013507,2]
[422613272,1779154232000,-150.0,0.00013567,2]
[422613264,1779154232000,-150.0,0.00013527,2]
[422613340,1779154232000,-538.700084,0.00013935,2]
[422613274,1779154232000,-150.0,0.00013567,2]
[422613266,1779154232000,-150.0,0.00013527,2]
[422613270,1779154232000,-150.0,0.00013566,2]
[422613280,1779154232000,-150.0,0.00013588,2]
[422613278,1779154232000,-150.0,0.00013585,2]
[422613276,1779154232000,-431.73,0.00013573,2]
[422613281,1779154232000,-150.0,0.00013604,2]
[422613282,1779154232000,-150.0,0.00013606,2]
[422613283,1779154232000,-150.0,0.00013624,2]
[422613292,1779154232000,-150.0,0.00013682,2]
[422613285,1779154232000,-150.0,0.00013643,2]
[422613291,1779154232000,-338.9201,0.00013671,2]
[422613284,1779154232000,-156.33,0.00013643,2]
[422613286,1779154232000,-150.0,0.00013645,2]
[422613288,1779154232000,-200.0,0.00013646,2]
[422613287,1779154232000,-150.0,0.00013645,2]
[422613289,1779154232000,-211.86,0.00013654,2]
[422613290,1779154232000,-150.0,0.00013663,2]
[422613294,1779154232000,-150.0,0.00013687,2]
[422613305,1779154232000,-163.1,0.00013704,2]
[422613312,1779154232000,-150.0,0.00013724,2]
[422613307,1779154232000,-150.0,0.00013721,2]
[422613293,1779154232000,-150.0,0.00013685,2]
[422613346,1779154232000,-150.0,0.00013961,2]
[422613335,1779154232000,-431.73,0.00013896,2]
[422613339,1779154232000,-166.66,0.00013927,2]
[422613371,1779154232000,-150.0,0.00014149,2]
[422613373,1779154232000,-150.0,0.00014158,2]
[422613376,1779154232000,-2500.0,0.00014167,2]
[422613378,1779154232000,-2500.0,0.00014167,2]
[422613379,1779154232000,-2500.0,0.00014167,2]
[422613377,1779154232000,-2500.0,0.00014167,2]
[422613380,1779154232000,-2500.0,0.00014167,2]
[422613387,1779154232000,-150.0,0.00014187,2]
[422613388,1779154232000,-150.0,0.00014188,2]
[422613385,1779154232000,-206.09493934,0.00014167,2]
[422613381,1779154232000,-600.0,0.00014167,2]
[422613384,1779154232000,-150.0,0.00014167,2]
[422613383,1779154232000,-212.72597992,0.00014167,2]
[422613367,1779154232000,-150.0,0.00014119,2]
[422613386,1779154232000,-150.0,0.00014169,2]
[422613400,1779154232000,-437.36053567,0.00014247,2]
[422613389,1779154232000,-150.0,0.00014198,2]
[422613395,1779154232000,-250.0,0.00014219,2]
[422613401,1779154232000,-150.0,0.00014266,2]
[422613391,1779154232000,-150.0,0.00014208,2]
[422613393,1779154232000,-300.0,0.00014219,2]
[422613392,1779154232000,-300.0,0.00014219,2]
[422613396,1779154232000,-431.73,0.00014219,2]
[422613394,1779154232000,-335.91227841,0.00014219,2]
[422613397,1779154232000,-150.0,0.00014227,2]
[422613398,1779154232000,-150.0,0.00014237,2]
[422613342,1779154232000,-248.506178,0.00013935,2]
[422613399,1779154232000,-150.0,0.00014247,2]
[422613390,1779154232000,-150.0,0.00014198,2]
[422613365,1779154232000,-150.0,0.00014091,2]
[422613382,1779154232000,-727.45605447,0.00014167,2]
[422613366,1779154232000,-150.0,0.0001411,2]
[422613347,1779154232000,-150.0,0.00013974,2]
[422613368,1779154232000,-150.0,0.00014119,2]
[422613345,1779154232000,-150.0,0.00013961,2]
[422613349,1779154232000,-263.50783151,0.00013987,2]
[422613344,1779154232000,-150.0,0.00013955,2]
[422613343,1779154232000,-150.0,0.00013935,2]
[422613348,1779154232000,-3017.79422518,0.00013987,2]
[422613350,1779154232000,-4065.48350973,0.00013987,2]
[422613351,1779154232000,-150.0,0.00013987,2]
[422613353,1779154232000,-250.0,0.00014,2]
[422613354,1779154232000,-309.87680195,0.00014,2]
[422613355,1779154232000,-150.0,0.00014,2]
[422613357,1779154232000,-150.0,0.00014033,2]
[422613356,1779154232000,-150.0,0.00014013,2]
[422613341,1779154232000,-275.58603,0.00013935,2]
[422613361,1779154232000,-150.0,0.00014072,2]
[422613370,1779154232000,-204.94739983,0.00014137,2]
[422613352,1779154232000,-150.0,0.00013994,2]
[422613372,1779154232000,-166.66,0.00014155,2]
[422613363,1779154232000,-150.0,0.00014087,2]
[422613375,1779154232000,-300.0,0.00014167,2]
[422613374,1779154232000,-300.0,0.00014167,2]
[422613369,1779154232000,-150.0,0.0001413,2]
[422613362,1779154232000,-150.0,0.00014079,2]
[422613358,1779154232000,-150.0,0.0001404,2]
[422613360,1779154232000,-150.0,0.00014052,2]
[422613359,1779154232000,-150.0,0.0001404,2]
[422613364,1779154232000,-150.0,0.00014087,2]
[422613445,1779154233000,-150.0,0.00014578,2]
[422613438,1779154233000,-500.0,0.00014535,2]
[422613443,1779154233000,-150.0,0.00014552,2]
[422613441,1779154233000,-1000.0,0.00014551,2]
[422613439,1779154233000,-500.0,0.00014535,2]
[422613434,1779154233000,-500.0,0.00014535,2]
[422613437,1779154233000,-500.0,0.00014535,2]
[422613436,1779154233000,-500.0,0.00014535,2]
[422613440,1779154233000,-150.0,0.00014539,2]
[422613442,1779154233000,-1000.0,0.00014551,2]
[422613435,1779154233000,-500.0,0.00014535,2]
[422613429,1779154233000,-150.0,0.00014513,2]
[422613444,1779154233000,-150.0,0.00014558,2]
[422613449,1779154233000,-150.0,0.00014597,2]
[422613451,1779154233000,-150.0,0.00014617,2]
[422613450,1779154233000,-255.0,0.00014614,2]
[422613446,1779154233000,-150.0,0.00014587,2]
[422613447,1779154233000,-150.0,0.00014592,2]
[422613453,1779154233000,-150.0,0.00014631,2]
[422613452,1779154233000,-193.0,0.0001463,2]
[422613454,1779154233000,-150.0,0.00014636,2]
[422613455,1779154233000,-150.0,0.00014638,2]
[422613458,1779154233000,-150.0,0.00014671,2]
[422613457,1779154233000,-150.0,0.00014671,2]
[422613459,1779154233000,-150.0,0.00014675,2]
[422613460,1779154233000,-420.0,0.00014676,2]
[422613431,1779154233000,-500.0,0.00014535,2]
[422613448,1779154233000,-150.0,0.00014592,2]
[422613432,1779154233000,-500.0,0.00014535,2]
[422613403,1779154233000,-150.0,0.00014276,2]
[422613433,1779154233000,-500.0,0.00014535,2]
[422613463,1779154233000,-6802.7648,0.00014684,2]
[422613405,1779154233000,-150.0,0.00014287,2]
[422613410,1779154233000,-150.0,0.00014355,2]
[422613406,1779154233000,-150.0,0.00014305,2]
[422613407,1779154233000,-150.0,0.00014316,2]
[422613414,1779154233000,-166.66,0.00014384,2]
[422613409,1779154233000,-150.0,0.00014344,2]
[422613404,1779154233000,-150.0,0.00014286,2]
[422613408,1779154233000,-150.0,0.00014325,2]
[422613415,1779154233000,-150.0,0.00014387,2]
[422613413,1779154233000,-150.0,0.00014383,2]
[422613412,1779154233000,-150.0,0.00014363,2]
[422613411,1779154233000,-150.0,0.00014355,2]
[422613417,1779154233000,-150.0,0.00014395,2]
[422613402,1779154233000,-150.0,0.00014276,2]
[422613427,1779154233000,-150.0,0.000145,2]
[422613416,1779154233000,-150.0,0.00014387,2]
[422613426,1779154233000,-150.0,0.00014487,2]
[422613421,1779154233000,-150.0,0.00014434,2]
[422613422,1779154233000,-150.0,0.00014441,2]
[422613425,1779154233000,-150.0,0.0001448,2]
[422613423,1779154233000,-150.0,0.00014461,2]
[422613420,1779154233000,-150.0,0.00014434,2]
[422613418,1779154233000,-150.0,0.00014402,2]
[422613419,1779154233000,-150.0,0.00014422,2]
[422613424,1779154233000,-150.0,0.00014474,2]
[422613428,1779154233000,-150.0,0.00014513,2]
[422613430,1779154233000,-150.0,0.00014519,2]
[422613461,1779154233000,-4168.5776,0.00014684,2]
[422613504,1779154233000,-12384.62976766,0.00014844,2]
[422613466,1779154233000,-150.0,0.00014687,2]
[422613492,1779154233000,-1734.04990974,0.000148,2]
[422613499,1779154233000,-150.0,0.00014829,2]
[422613498,1779154233000,-6403.22628176,0.00014828,2]
[422613494,1779154233000,-6403.22628176,0.00014804,2]
[422613497,1779154233000,-12384.62976766,0.00014817,2]
[422613501,1779154233000,-12384.62976766,0.00014831,2]
[422613496,1779154233000,-150.0,0.00014811,2]
[422613502,1779154233000,-150.0,0.00014831,2]
[422613503,1779154233000,-2693.38701942,0.00014832,2]
[422613508,1779154233000,-167.0,0.00014849,2]
[422613514,1779154233000,-150.0,0.00014868,2]
[422613506,1779154233000,-8466.0,0.00014849,2]
[422613505,1779154233000,-500.0,0.00014849,2]
[422613507,1779154233000,-6013.0,0.00014849,2]
[422613511,1779154233000,-2693.38701942,0.00014854,2]
[422613509,1779154233000,-150.0,0.0001485,2]
[422613512,1779154233000,-250.0,0.00014856,2]
[422613513,1779154233000,-12384.62976766,0.00014858,2]
[422613516,1779154233000,-12384.62976766,0.00014872,2]
[422613515,1779154233000,-150.0,0.0001487,2]
[422613519,1779154233000,-288.99848596,0.00014876,2]
[422613522,1779154233000,-760.53387813,0.00014877,2]
[422613517,1779154233000,-404.3443373,0.00014875,2]
[422613518,1779154233000,-6114.2277958,0.00014876,2]
[422613520,1779154233000,-451.0194526,0.00014877,2]
[422613521,1779154233000,-343.32323318,0.00014877,2]
[422613462,1779154233000,-9738.682,0.00014684,2]
[422613495,1779154233000,-2693.38701942,0.00014809,2]
[422613500,1779154233000,-150.0,0.00014829,2]
[422613510,1779154233000,-6403.22628176,0.00014852,2]
[422613487,1779154233000,-12384.62976766,0.00014789,2]
[422613493,1779154233000,-12384.62976766,0.00014803,2]
[422613456,1779154233000,-150.0,0.00014655,2]
[422613465,1779154233000,-150.0,0.00014687,2]
[422613467,1779154233000,-150.0,0.00014694,2]
[422613469,1779154233000,-150.0,0.0001471,2]
[422613468,1779154233000,-6403.22628176,0.00014709,2]
[422613476,1779154233000,-150.0,0.0001475,2]
[422613464,1779154233000,-6403.22628184,0.00014685,2]
[422613478,1779154233000,-150.0,0.00014753,2]
[422613477,1779154233000,-6995.50797617,0.0001475,2]
[422613471,1779154233000,-1680.0,0.00014727,2]
[422613472,1779154233000,-6403.22628176,0.00014733,2]
[422613475,1779154233000,-150.0,0.0001475,2]
[422613470,1779154233000,-150.0,0.00014714,2]
[422613473,1779154233000,-150.0,0.00014733,2]
[422613474,1779154233000,-2500.0,0.00014748,2]
[422613488,1779154233000,-150.0,0.00014789,2]
[422613486,1779154233000,-150.0,0.00014786,2]
[422613483,1779154233000,-33187.2102,0.00014784,2]
[422613482,1779154233000,-6403.22628176,0.00014781,2]
[422613484,1779154233000,-5000.0,0.00014785,2]
[422613489,1779154233000,-150.0,0.00014792,2]
[422613481,1779154233000,-12384.62976766,0.00014775,2]
[422613491,1779154233000,-159.83548884,0.000148,2]
[422613479,1779154233000,-6403.22628176,0.00014757,2]
[422613490,1779154233000,-10000.0,0.000148,2]
[422613480,1779154233000,-150.0,0.00014772,2]
[422613485,1779154233000,-2693.38701944,0.00014786,2]
[422613531,1779154237000,-500.0,0.00014884,2]
[422613532,1779154237000,-354.50534306,0.00014884,2]
[422613529,1779154237000,-994.47,0.00014882,2]
[422613540,1779154237000,-994.47,0.00014884,2]
[422613530,1779154237000,-500.0,0.00014884,2]
[422613527,1779154237000,-500.0,0.00014882,2]
[422613526,1779154237000,-500.0,0.00014882,2]
[422613528,1779154237000,-500.0,0.00014882,2]
[422613523,1779154237000,-208.5339928,0.00013711,2]
[422613524,1779154237000,-945.59482658,0.000148,2]
[422613525,1779154237000,-1138.51045551,0.00014877,2]
[422613539,1779154237000,-433.38260606,0.00014884,2]
[422613533,1779154237000,-409.69555367,0.00014884,2]
[422613536,1779154237000,-500.0,0.00014884,2]
[422613535,1779154237000,-500.0,0.00014884,2]
[422613538,1779154237000,-499.11019497,0.00014884,2]
[422613537,1779154237000,-0.88980503,0.00014884,2]
[422613541,1779154237000,-994.47,0.00014884,2]
[422613545,1779154237000,-994.47,0.00014884,2]
[422613544,1779154237000,-17.70202153,0.00014884,2]
[422613543,1779154237000,-976.76797847,0.00014884,2]
[422613547,1779154237000,-994.47,0.00014884,2]
[422613546,1779154237000,-994.47,0.00014884,2]
[422613542,1779154237000,-994.47,0.00014884,2]
[422613534,1779154237000,-90.30444633,0.00014884,2]
[422613550,1779154238000,-51.6030638,0.00014884,2]
[422613551,1779154238000,-942.8669362,0.00014884,2]
[422613549,1779154238000,-994.47,0.00014884,2]
[422613548,1779154238000,-994.47,0.00014884,2]
[422613556,1779154238000,-534.124359,0.00014885,2]
[422613554,1779154238000,-301.28783368,0.00014885,2]
[422613552,1779154238000,-776357.1330638,0.00014885,2]
[422613555,1779154238000,-395.24465621,0.00014885,2]
[422613553,1779154238000,-446.01898321,0.00014885,2]
[422613559,1779154239000,-317.893275,0.00014885,2]
[422613558,1779154239000,-843.821,0.00014885,2]
[422613563,1779154240000,-367.61301963,0.00014885,2]
[422613561,1779154240000,-1841.45808332,0.00014885,2]
[422613562,1779154240000,-182433.24508403,0.00014885,2]
[422613560,1779154240000,-23921.5,0.00014885,2]
[422613605,1779154242000,-329.91,0.00014885,2]
[422613604,1779154242000,-89004.18955635,0.00014885,2]
[422613603,1779154242000,-1118.29677384,0.00014885,2]
[422613608,1779154243000,-453302.27078912,0.00014885,2]
[422613610,1779154243000,-560.97419907,0.00014885,2]
[422613616,1779154246000,-1558.86743648,0.00013987,2]
[422613615,1779154246000,-270.39079621,0.00013987,2]
[422613618,1779154246000,-2434.26685986,0.00014885,2]
[422613617,1779154246000,-424.69161188,0.00013987,2]
[422613620,1779154246000,-335.819307,0.00014885,2]
[422613632,1779154274000,648.256,0.00030137,120]
[422613633,1779154281000,216.0,0.000301,120]
[422613634,1779154314000,150.8914886,0.00030137,120]
[422613635,1779154349000,382.0,0.00030137,120]
[422613637,1779154469000,568.8783324,0.00030136,120]
[422613651,1779154972000,538.0,0.0003,120]
[422613652,1779155155000,187.435,0.00030137,120]
[422613657,1779155332000,170.43,6.45e-05,2]
[422613658,1779155341000,1000.0,0.00030136,120]
[422613678,1779155431000,-150.48959402,0.00013488,2]
[422613687,1779155431000,-8345.91554331,0.00013589,2]
[422613681,1779155431000,-150.0,0.00013488,2]
[422613688,1779155431000,-269.56289154,0.00013594,2]
[422613679,1779155431000,-150.0,0.00013488,2]
[422613684,1779155431000,-5000.0,0.00013504,2]
[422613682,1779155431000,-2500.0,0.00013501,2]
[422613683,1779155431000,-2000.0,0.00013504,2]
[422613686,1779155431000,-345.67075388,0.00013556,2]
[422613680,1779155431000,-150.0,0.00013488,2]
[422613685,1779155431000,-198.17886265,0.00013536,2]
[422613690,1779155431000,-179.214,0.00013594,2]
[422613691,1779155431000,-500.0,0.00013598,2]
[422613677,1779155431000,-152.75252402,0.00013488,2]
[422613695,1779155431000,-500.0,0.00013598,2]
[422613692,1779155431000,-500.0,0.00013598,2]
[422613693,1779155431000,-500.0,0.00013598,2]
[422613696,1779155431000,-500.0,0.00013598,2]
[422613699,1779155431000,-500.0,0.00013598,2]
[422613697,1779155431000,-500.0,0.00013598,2]
[422613689,1779155431000,-1832.491,0.00013594,2]
[422613694,1779155431000,-500.0,0.00013598,2]
[422613674,1779155431000,-215.6969,0.00013232,2]
[422613672,1779155431000,-2000.0,0.00013063,2]
[422613673,1779155431000,-232.94,0.00013085,2]
[422613662,1779155431000,-699.20288059,0.00012667,2]
[422613664,1779155431000,-163.44,0.00012672,2]
[422613663,1779155431000,-187.95711941,0.00012667,2]
[422613667,1779155431000,-1200.0,0.00012809,2]
[422613675,1779155431000,-1112.83,0.00013352,2]
[422613665,1779155431000,-257.68288058,0.00012773,2]
[422613666,1779155431000,-7364.95711942,0.00012773,2]
[422613670,1779155431000,-300.0,0.00013062,2]
[422613671,1779155431000,-300.0,0.00013062,2]
[422613669,1779155431000,-246.75,0.00012846,2]
[422613668,1779155431000,-224.10583215,0.0001281,2]
[422613676,1779155431000,-150.0,0.00013488,2]
[422613753,1779155432000,-4224.81679811,0.00013598,2]
[422613733,1779155432000,-500.0,0.00013598,2]
[422613746,1779155432000,-500.0,0.00013598,2]
[422613755,1779155432000,-4224.81679811,0.00013598,2]
[422613757,1779155432000,-4224.81679811,0.00013598,2]
[422613750,1779155432000,-4224.81679811,0.00013598,2]